[Event "FIDE World Junior U20-ch Girls 2025"]
[Site "Petrovac"]
[Date "2025.02.25"]
[Round "1.9"]
[White "Savitha Shri B"]
[Black "Karacsonyi, Luca"]
[Result "1-0"]
[Annotator "ChessBase"]
[ECO "B43"]
[WhiteElo "2332"]
[BlackElo "2026"]
[PlyCount "105"]
[EventDate "2025.02.23"]
[EventType "swiss"]
[EventCountry "MNE"]
[SourceTitle "playchess.com"]
[Source "ChessBase"]
[SourceQuality "1"]
[TimeControl "40/5400+30:1800+30"]

1. e4 {[%emt 0:00:02]} c5 {[%emt 0:00:07]} 2. Nf3 {[%emt 0:00:05]} a6 {[%emt 0:00:09]} 3. Nc3 {[%emt 0:03:13]} b5 {[%emt 0:00:22]} 4. d4 {[%emt 0:00:31]} cxd4 {[%emt 0:00:16]} 5. Nxd4 {[%emt 0:00:25]} e6 {[%emt 0:00:24]} 6. Bd3 {[%emt 0:01:35]} Bb7 {[%emt 0:00:51]} 7. O-O {[%emt 0:05:37]} Nc6 {[%emt 0:02:55]} 8. Be3 {[%emt 0:02:49]} Nf6 {[%emt 0:03:50]} 9. Nb3 {[%emt 0:16:37]} Bb4 {[%emt 0:12:04]} 10. Nc5 {[%emt 0:01:51]} Bxc5 {[%emt 0:02:04]} 11. Bxc5 {[%emt 0:00:07]} d6 {[%emt 0:02:13]} 12. Be3 {[%emt 0:00:05]} Ne5 {[%emt 0:03:02]} 13. Bg5 {[%emt 0:08:41]} h6 {[%emt 0:08:01]} 14. Bh4 {[%emt 0:04:11]} Ng6 {[%emt 0:05:57]} 15. Bg3 {[%emt 0:04:08]} b4 {[%emt 0:02:42]} 16. Na4 {[%emt 0:00:25]} Bxe4 {[%emt 0:08:23]} 17. Re1 {[%emt 0:02:20]} Bxd3 {[%emt 0:09:00]} 18. Qxd3 {[%emt 0:00:06]} e5 {[%emt 0:07:01]} 19. Rad1 {[%emt 0:04:36]} O-O {[%emt 0:01:46]} 20. Qxd6 {[%emt 0:03:17]} Qxd6 {[%emt 0:03:58]} 21. Rxd6 {[%emt 0:00:08]} Rfd8 {[%emt 0:01:42]} 22. Rb6 {[%emt 0:05:45]} a5 {[%emt 0:03:09]} 23. h3 {[%emt 0:03:30]} Rd2 {[%emt 0:05:04]} 24. c3 {[%emt 0:05:07]} Nd7 {[%emt 0:06:02]} 25. Rb5 {[%emt 0:03:02]} bxc3 {[%emt 0:03:19]} 26. Nxc3 {[%emt 0:00:32]} Rb8 {[%emt 0:01:07]} 27. Rxa5 {[%emt 0:11:48]} Rbxb2 {[%emt 0:00:32]} 28. h4 {[%emt 0:03:44]} f5 {[%emt 0:03:20]} 29. Ra8+ {[%emt 0:03:13]} Ndf8 {[%emt 0:01:01]} 30. h5 {[%emt 0:05:14]} f4 {[%emt 0:01:29]} 31. Ne4 {[%emt 0:00:13]} Rxa2 {[%emt 0:02:28]} 32. Re8 {[%emt 0:01:05]} Re2 {[%emt 0:01:22]} 33. Rxe2 {[%emt 0:00:05]} Rxe2 {[%emt 0:00:04]} 34. hxg6 {[%emt 0:00:03]} fxg3 {[%emt 0:01:05]} 35. Nxg3 {[%emt 0:00:05]} Re1+ {[%emt 0:00:28]} 36. Kh2 {[%emt 0:00:01]} Rb1 {[%emt 0:00:34]} 37. Nf5 {[%emt 0:00:08]} Rb7 {[%emt 0:00:14]} 38. Kh3 {[%emt 0:01:33]} e4 {[%emt 0:00:33]} 39. g3 {[%emt 0:01:30]} Ra7 {[%emt 0:00:25]} 40. Kg4 {[%emt 0:01:11]} Rb7 {[%emt 0:00:38]} 41. Ne7+ {[%emt 0:31:40]} Rxe7 {[%emt 0:30:08]} 42. Rxe7 {[%emt 0:00:05]} Nxg6 {[%emt 0:00:14]} 43. Rxe4 {[%emt 0:00:03]} Kf7 {[%emt 0:00:35]} 44. f4 {[%emt 0:00:11]} Kf6 {[%emt 0:00:00]} 45. Ra4 {[%emt 0:00:00]} Ne7 {[%emt 0:00:00]} 46. Ra6+ {[%emt 0:00:00]} Kf7 {[%emt 0:00:00]} 47. Kf3 {[%emt 0:00:00]} h5 {[%emt 0:00:00]} 48. Ke4 {[%emt 0:00:00]} g6 {[%emt 0:00:00]} 49. Ke5 {[%emt 0:00:00]} Nf5 {[%emt 0:00:00]} 50. Ra7+ {[%emt 0:00:00]} Kg8 {[%emt 0:00:00]} 51. Kf6 {[%emt 0:00:00]} Nxg3 {[%emt 0:00:00]} 52. Kxg6 {[%emt 0:00:00]} Kf8 {[%emt 0:00:00]} 53. f5 {[%emt 0:00:00]} 1-0

[Event "FIDE World Junior U20-ch Girls 2025"]
[Site "Petrovac"]
[Date "2025.02.25"]
[Round "1.10"]
[White "Romany, Joy"]
[Black "Velpula Sarayu"]
[Result "0-1"]
[Annotator "RC"]
[ECO "E94"]
[WhiteElo "2025"]
[BlackElo "2315"]
[PlyCount "110"]
[EventDate "2025.02.23"]
[EventType "swiss"]
[EventCountry "MNE"]
[SourceTitle "playchess.com"]
[Source "ChessBase"]
[SourceQuality "1"]
[TimeControl "40/5400+30:1800+30"]

1. d4 {[%emt 0:00:20]} Nf6 {[%emt 0:00:27]} 2. c4 {[%emt 0:00:06]} g6 {[%emt 0:00:32]} 3. Nc3 {[%emt 0:00:06]} Bg7 {[%emt 0:00:32]} 4. e4 {[%emt 0:00:07]} d6 {[%emt 0:00:28]} 5. Nf3 {[%emt 0:00:14]} O-O {[%emt 0:00:37]} 6. Be2 {[%emt 0:00:11]} Na6 {[%emt 0:02:25]} 7. O-O {[%emt 0:00:28]} e5 {[%emt 0:00:18]} 8. Be3 {[%emt 0:01:26]} Qe7 {[%emt 0:07:45]} 9. Qc2 {[%emt 0:01:25]} c6 {[%emt 0:01:29]} 10. Rfe1 {[%emt 0:13:59]} Bg4 {[%emt 0:11:34]} 11. Rad1 {[%emt 0:04:46]} Nd7 {[%emt 0:04:44]} 12. dxe5 {[%emt 0:11:02]} dxe5 {[%emt 0:00:53]} 13. Qd2 {[%emt 0:01:02]} Rfd8 {[%emt 0:02:50]} 14. Qc1 {[%emt 0:05:16]} Nac5 {[%emt 0:08:11]} 15. h3 {[%emt 0:01:54]} Bxf3 {[%emt 0:03:59]} 16. Bxf3 {[%emt 0:02:04]} h5 {[%emt 0:08:20]} 17. Rd2 {[%emt 0:06:23]} Ne6 {[%emt 0:02:09]} 18. Ne2 {[%emt 0:02:43]} Bf6 {[%emt 0:06:32]} 19. Red1 {[%emt 0:01:49]} Ng5 {[%emt 0:04:34]} 20. Rd6 {[%emt 0:05:55]} Nxf3+ {[%emt 0:02:37]} 21. gxf3 {[%emt 0:00:02]} Nf8 {[%emt 0:02:50]} 22. c5 {[%emt 0:11:45]} Ne6 {[%emt 0:02:20]} 23. Qd2 {[%emt 0:05:00]} b6 {[%emt 0:15:10]} 24. b4 {[%emt 0:06:01]} Qe8 {[%emt 0:02:30]} 25. Qc3 {[%emt 0:12:32]} bxc5 {[%emt 0:04:35]} 26. bxc5 {[%emt 0:00:25]} Qe7 {[%emt 0:03:01]} 27. Kg2 {[%emt 0:01:13]} Nc7 {[%emt 0:02:01]} 28. a4 {[%emt 0:02:55]} Ne8 {[%emt 0:00:18]} 29. R6d2 {[%emt 0:01:08]} Rxd2 {[%emt 0:00:31]} 30. Rxd2 {[%emt 0:00:10]} Rd8 {[%emt 0:00:18]} 31. Nc1 {[%emt 0:01:15]} Nc7 {[%emt 0:00:33]} 32. Nd3 {[%emt 0:01:47]} Ne6 {[%emt 0:00:36]} 33. Nb4 {[%emt 0:00:51]} Nd4 {[%emt 0:00:45]} 34. Qc4 {[%emt 0:00:29]} Qc7 {[%emt 0:00:27]} 35. Qa6 {[%emt 0:00:31]} Rc8 {[%emt 0:00:23]} 36. Qc4 {[%emt 0:00:33]} a5 {[%emt 0:00:25]} 37. Nc2 {[%emt 0:00:24]} Ne6 {[%emt 0:00:08]} 38. Na1 {[%emt 0:00:35]} Rb8 {[%emt 0:00:23]} 39. Nc2 {[%emt 0:00:31]} Be7 {[%emt 0:00:27]} 40. Qc3 {[%emt 0:00:24]} Bg5 {[%emt 0:00:48]} 41. Rd6 {[%emt 0:30:34]} Bxe3 {[%emt 0:31:02]} 42. fxe3 {[%emt 0:00:31]} Qb7 {[%emt 0:00:00]} 43. Qxe5 {[%emt 0:00:00]} Qb2 {[%emt 0:00:00]} 44. Qxb2 {[%emt 0:00:00]} Rxb2 {[%emt 0:00:00]} 45. Rd2 {[%emt 0:00:00]} Nxc5 {[%emt 0:00:00]} 46. Kf2 {[%emt 0:00:00]} Nxa4 {[%emt 0:00:00]} 47. Ke2 {[%emt 0:00:00]} Nc3+ {[%emt 0:00:00]} 48. Kd3 {[%emt 0:00:00]} Nb1 {[%emt 0:00:00]} 49. Rd1 {[%emt 0:00:00]} a4 {[%emt 0:00:00]} 50. Na1 {[%emt 0:00:00]} a3 {[%emt 0:00:00]} 51. h4 {[%emt 0:00:00]} a2 {[%emt 0:00:00]} 52. f4 {[%emt 0:00:00]} Rh2 {[%emt 0:00:40]} 53. f5 {[%emt 0:00:00]} g5 {[%emt 0:01:36]} 54. e5 {[%emt 0:00:00]} gxh4 {[%emt 0:00:49]} 55. f6 {[%emt 0:00:00]} Rd2+ {[%emt 0:01:26]} 0-1

[Event "FIDE World Junior U20-ch Girls 2025"]
[Site "Petrovac"]
[Date "2025.02.25"]
[Round "1.11"]
[White "Toncheva, Nadya"]
[Black "Shohradova, Lala"]
[Result "1-0"]
[Annotator "RC"]
[ECO "D35"]
[WhiteElo "2311"]
[BlackElo "2025"]
[PlyCount "153"]
[EventDate "2025.02.23"]
[EventType "swiss"]
[EventCountry "MNE"]
[SourceTitle "playchess.com"]
[Source "ChessBase"]
[SourceQuality "1"]
[TimeControl "40/5400+30:1800+30"]

1. d4 {[%emt 0:00:03]} Nf6 {[%emt 0:00:49]} 2. c4 {[%emt 0:00:07]} e6 {[%emt 0:00:03]} 3. Nc3 {[%emt 0:00:05]} d5 {[%emt 0:00:20]} 4. cxd5 {[%emt 0:00:06]} exd5 {[%emt 0:00:03]} 5. Bg5 {[%emt 0:00:07]} c6 {[%emt 0:00:46]} 6. e3 {[%emt 0:00:09]} Be7 {[%emt 0:00:36]} 7. Bd3 {[%emt 0:00:09]} O-O {[%emt 0:01:08]} 8. Qc2 {[%emt 0:00:26]} Nbd7 {[%emt 0:00:16]} 9. h3 {[%emt 0:01:11]} Re8 {[%emt 0:02:03]} 10. Nf3 {[%emt 0:00:21]} Nf8 {[%emt 0:02:44]} 11. O-O {[%emt 0:00:14]} Ne4 {[%emt 0:09:00]} 12. Bf4 {[%emt 0:00:07]} f5 {[%emt 0:00:21]} 13. Bh2 {[%emt 0:00:06]} Ng6 {[%emt 0:05:08]} 14. Ne2 {[%emt 0:00:06]} Bd6 {[%emt 0:01:12]} 15. Bxd6 {[%emt 0:00:05]} Qxd6 {[%emt 0:00:07]} 16. g3 {[%emt 0:00:04]} b6 {[%emt 0:12:11]} 17. Rac1 {[%emt 0:11:39]} Bb7 {[%emt 0:05:22]} 18. Nf4 {[%emt 0:02:07]} c5 {[%emt 0:08:59]} 19. Nxg6 {[%emt 0:05:07]} Qxg6 {[%emt 0:02:10]} 20. Nh4 {[%emt 0:09:14]} Qe6 {[%emt 0:04:09]} 21. dxc5 {[%emt 0:08:35]} bxc5 {[%emt 0:07:23]} 22. Ng2 {[%emt 0:04:56]} Rac8 {[%emt 0:05:11]} 23. h4 {[%emt 0:11:27]} Qc6 {[%emt 0:08:26]} 24. Nf4 {[%emt 0:08:20]} Kh8 {[%emt 0:03:02]} 25. Kh2 {[%emt 0:00:45]} Qh6 {[%emt 0:04:16]} 26. f3 {[%emt 0:05:55]} c4 {[%emt 0:06:49]} 27. Be2 {[%emt 0:01:13]} Nf6 {[%emt 0:00:41]} 28. Qc3 {[%emt 0:01:44]} Re7 {[%emt 0:03:06]} 29. Qd4 {[%emt 0:01:52]} Rf8 {[%emt 0:03:35]} 30. Kg2 {[%emt 0:04:21]} Nh5 {[%emt 0:01:13]} 31. Nxh5 {[%emt 0:02:43]} Qxh5 {[%emt 0:00:02]} 32. Kf2 {[%emt 0:00:52]} f4 {[%emt 0:02:14]} 33. exf4 {[%emt 0:01:25]} Rfe8 {[%emt 0:00:22]} 34. Rce1 {[%emt 0:10:52]} Qf5 {[%emt 0:00:53]} 35. Bd1 {[%emt 0:00:13]} Qh3 {[%emt 0:01:10]} 36. Rh1 {[%emt 0:00:12]} Qd7 {[%emt 0:00:22]} 37. Re5 {[%emt 0:01:57]} Rxe5 {[%emt 0:01:16]} 38. fxe5 {[%emt 0:00:05]} Rc8 {[%emt 0:01:07]} 39. Be2 {[%emt 0:02:22]} Qa4 {[%emt 0:00:32]} 40. a3 {[%emt 0:00:59]} Qc2 {[%emt 0:00:06]} 41. Qc3 {[%emt 0:31:16]} Qf5 {[%emt 0:31:02]} 42. Rd1 {[%emt 0:03:07]} Re8 {[%emt 0:00:00]} 43. f4 {[%emt 0:00:00]} Qh3 {[%emt 0:00:00]} 44. Rd4 {[%emt 0:00:00]} Qh2+ {[%emt 0:00:00]} 45. Ke1 {[%emt 0:00:00]} Bc6 {[%emt 0:00:00]} 46. Rd2 {[%emt 0:00:00]} Qg1+ {[%emt 0:00:00]} 47. Bf1 {[%emt 0:00:00]} Rb8 {[%emt 0:00:00]} 48. Qf3 {[%emt 0:00:00]} Rb3 {[%emt 0:00:00]} 49. Qf2 {[%emt 0:00:00]} Rxg3 {[%emt 0:00:00]} 50. Qxg1 {[%emt 0:00:00]} Rxg1 {[%emt 0:00:00]} 51. Kf2 {[%emt 0:00:00]} Rg4 {[%emt 0:00:00]} 52. Rd4 {[%emt 0:00:00]} Rxh4 {[%emt 0:00:32]} 53. Bxc4 {[%emt 0:00:00]} Kg8 {[%emt 0:03:24]} 54. Bxd5+ {[%emt 0:03:05]} Bxd5 {[%emt 0:00:01]} 55. Rxd5 {[%emt 0:00:05]} Rxf4+ {[%emt 0:00:10]} 56. Ke3 {[%emt 0:00:05]} Rf8 {[%emt 0:01:50]} 57. Rd7 {[%emt 0:01:07]} a5 {[%emt 0:00:46]} 58. Ke4 {[%emt 0:00:39]} h5 {[%emt 0:00:54]} 59. e6 {[%emt 0:01:33]} h4 {[%emt 0:00:38]} 60. Ke5 {[%emt 0:00:32]} Re8 {[%emt 0:01:21]} 61. Rd4 {[%emt 0:01:04]} Rb8 {[%emt 0:00:08]} 62. Rxh4 {[%emt 0:01:37]} Rxb2 {[%emt 0:00:08]} 63. Kd6 {[%emt 0:00:30]} Rb6+ {[%emt 0:00:30]} 64. Kd7 {[%emt 0:00:30]} Rb7+ {[%emt 0:00:30]} 65. Kc6 Rb3 {[%emt 0:00:30]} 66. Rf4 {[%emt 0:01:00]} Rc3+ {[%emt 0:00:30]} 67. Kd7 Rd3+ {[%emt 0:00:30]} 68. Ke8 {[%emt 0:01:00]} g5 {[%emt 0:00:30]} 69. Rf5 Kg7 {[%emt 0:00:30]} 70. e7 {[%emt 0:01:00]} Kg6 {[%emt 0:00:30]} 71. Rxa5 {[%emt 0:00:30]} g4 {[%emt 0:00:30]} 72. Kf8 {[%emt 0:00:30]} Rf3+ {[%emt 0:00:30]} 73. Kg8 {[%emt 0:00:30]} Re3 {[%emt 0:00:30]} 74. Ra6+ {[%emt 0:00:30]} Kf5 {[%emt 0:00:30]} 75. Kf7 {[%emt 0:00:30]} g3 {[%emt 0:00:30]} 76. Rf6+ {[%emt 0:00:30]} Kg4 {[%emt 0:00:30]} 77. e8=Q {[%emt 0:00:30]} 1-0

[Event "FIDE World Junior U20-ch Girls 2025"]
[Site "Petrovac"]
[Date "2025.02.25"]
[Round "1.12"]
[White "Blokhin, Sofia"]
[Black "Zhurova, Anna"]
[Result "0-1"]
[Annotator "ChessBase"]
[ECO "D37"]
[WhiteElo "2020"]
[BlackElo "2307"]
[PlyCount "96"]
[EventDate "2025.02.23"]
[EventType "swiss"]
[EventCountry "MNE"]
[SourceTitle "playchess.com"]
[Source "ChessBase"]
[SourceQuality "1"]
[TimeControl "40/5400+30:1800+30"]

1. d4 {[%emt 0:00:03]} d5 {[%emt 0:00:23]} 2. c4 {[%emt 0:00:07]} e6 {[%emt 0:00:06]} 3. Nc3 {[%emt 0:00:06]} Nf6 {[%emt 0:00:12]} 4. Nf3 {[%emt 0:00:08]} Nbd7 {[%emt 0:00:39]} 5. e3 {[%emt 0:00:30]} a6 {[%emt 0:00:48]} 6. b3 {[%emt 0:09:22]} b6 {[%emt 0:00:25]} 7. Bd3 {[%emt 0:03:20]} Bb7 {[%emt 0:00:25]} 8. O-O {[%emt 0:03:08]} Bd6 {[%emt 0:00:45]} 9. Bb2 {[%emt 0:06:52]} O-O {[%emt 0:00:14]} 10. Qe2 {[%emt 0:04:29]} Ne4 {[%emt 0:02:36]} 11. Rac1 {[%emt 0:03:16]} f5 {[%emt 0:05:03]} 12. a3 {[%emt 0:10:58]} Rf6 {[%emt 0:08:53]} 13. g3 {[%emt 0:10:54]} Rh6 {[%emt 0:03:11]} 14. b4 {[%emt 0:04:27]} Nxc3 {[%emt 0:20:05]} 15. Bxc3 {[%emt 0:03:02]} dxc4 {[%emt 0:01:03]} 16. Bxc4 {[%emt 0:00:21]} b5 {[%emt 0:07:48]} 17. Ba2 {[%emt 0:04:25]} Nb6 {[%emt 0:00:54]} 18. Bb1 {[%emt 0:01:43]} Nc4 {[%emt 0:11:03]} 19. e4 {[%emt 0:03:48]} Nxa3 {[%emt 0:04:39]} 20. Bd2 {[%emt 0:07:46]} Rh5 {[%emt 0:06:45]} 21. Ba2 {[%emt 0:05:48]} Nc4 {[%emt 0:04:57]} 22. Bxc4 {[%emt 0:05:50]} bxc4 {[%emt 0:00:09]} 23. exf5 {[%emt 0:00:42]} Qf6 {[%emt 0:04:46]} 24. g4 {[%emt 0:04:58]} Rh3 {[%emt 0:01:31]} 25. Rc3 {[%emt 0:01:38]} Rf8 {[%emt 0:06:40]} 26. Ne5 {[%emt 0:00:53]} Rxc3 {[%emt 0:00:39]} 27. Bxc3 {[%emt 0:00:10]} exf5 {[%emt 0:00:26]} 28. Qxc4+ {[%emt 0:01:36]} Kh8 {[%emt 0:00:11]} 29. f3 {[%emt 0:00:39]} Bc8 {[%emt 0:00:55]} 30. Qe2 {[%emt 0:00:59]} Qe7 {[%emt 0:02:36]} 31. Re1 {[%emt 0:00:27]} Qh4 {[%emt 0:01:28]} 32. d5 {[%emt 0:01:08]} fxg4 {[%emt 0:01:31]} 33. fxg4 {[%emt 0:01:17]} a5 {[%emt 0:01:52]} 34. Rf1 {[%emt 0:00:56]} axb4 {[%emt 0:02:27]} 35. Rxf8+ {[%emt 0:01:04]} Bxf8 {[%emt 0:00:04]} 36. Bd4 {[%emt 0:00:30]} Qe7 {[%emt 0:01:10]} 37. Qf3 {[%emt 0:00:20]} Kg8 {[%emt 0:00:42]} 38. Qb3 {[%emt 0:00:50]} Qd6 {[%emt 0:00:25]} 39. Qf3 {[%emt 0:00:31]} Qf6 {[%emt 0:00:56]} 40. Qb3 {[%emt 0:00:49]} Bxg4 {[%emt 0:00:34]} 41. Qc4 {[%emt 0:07:55]} Bh3 {[%emt 0:06:08]} 42. d6+ {[%emt 0:10:03]} Be6 {[%emt 0:00:30]} 43. Qxc7 {[%emt 0:00:22]} Qg5+ {[%emt 0:00:49]} 44. Kf2 {[%emt 0:02:07]} Qd2+ {[%emt 0:00:07]} 45. Kf3 {[%emt 0:00:24]} Bd5+ {[%emt 0:02:16]} 46. Kg3 {[%emt 0:02:20]} Qxd4 {[%emt 0:00:18]} 47. d7 {[%emt 0:01:19]} Qe3+ {[%emt 0:00:25]} 48. Kg4 {[%emt 0:01:02]} Be6+ {[%emt 0:00:06]} 0-1

[Event "FIDE World Junior U20-ch Girls 2025"]
[Site "Petrovac"]
[Date "2025.02.25"]
[Round "1.13"]
[White "Karmanova, Olga Dm."]
[Black "Lindstad, Livia"]
[Result "1-0"]
[Annotator "ChessBase"]
[ECO "B48"]
[WhiteElo "2292"]
[BlackElo "2017"]
[PlyCount "99"]
[EventDate "2025.02.23"]
[EventType "swiss"]
[EventCountry "MNE"]
[SourceTitle "playchess.com"]
[Source "ChessBase"]
[SourceQuality "1"]
[TimeControl "40/5400+30:1800+30"]

1. e4 {[%emt 0:00:03]} c5 {[%emt 0:00:38]} 2. Nf3 {[%emt 0:00:08]} e6 {[%emt 0:00:41]} 3. d4 {[%emt 0:00:11]} cxd4 {[%emt 0:00:12]} 4. Nxd4 {[%emt 0:00:04]} Nc6 {[%emt 0:00:46]} 5. Nc3 {[%emt 0:00:07]} Qc7 {[%emt 0:01:37]} 6. Be3 {[%emt 0:00:07]} a6 {[%emt 0:01:21]} 7. Bd3 {[%emt 0:00:29]} Nf6 {[%emt 0:04:09]} 8. Qe2 {[%emt 0:00:07]} Bb4 {[%emt 0:02:20]} 9. O-O {[%emt 0:04:34]} Ne5 {[%emt 0:05:41]} 10. f4 {[%emt 0:06:33]} Nxd3 {[%emt 0:04:10]} 11. cxd3 {[%emt 0:00:24]} Bxc3 {[%emt 0:07:01]} 12. Rac1 {[%emt 0:03:57]} Qa5 {[%emt 0:01:09]} 13. Rxc3 {[%emt 0:01:23]} d6 {[%emt 0:08:34]} 14. h3 {[%emt 0:10:43]} h6 {[%emt 0:07:18]} 15. Nb3 {[%emt 0:03:14]} Qh5 {[%emt 0:04:36]} 16. Qxh5 {[%emt 0:04:35]} Nxh5 {[%emt 0:00:11]} 17. Rfc1 {[%emt 0:00:18]} O-O {[%emt 0:04:28]} 18. Na5 {[%emt 0:03:13]} d5 {[%emt 0:03:09]} 19. Rc7 {[%emt 0:06:49]} dxe4 {[%emt 0:03:21]} 20. Nc4 {[%emt 0:01:42]} exd3 {[%emt 0:21:21]} 21. Nb6 {[%emt 0:00:13]} Ng3 {[%emt 0:02:45]} 22. Nxa8 {[%emt 0:03:54]} Ne2+ {[%emt 0:00:18]} 23. Kf2 {[%emt 0:00:17]} Nxc1 {[%emt 0:00:41]} 24. Bxc1 {[%emt 0:00:12]} e5 {[%emt 0:01:16]} 25. Nb6 {[%emt 0:01:33]} Be6 {[%emt 0:00:20]} 26. fxe5 {[%emt 0:02:59]} f6 {[%emt 0:01:57]} 27. exf6 {[%emt 0:07:36]} Rxf6+ {[%emt 0:00:18]} 28. Ke3 {[%emt 0:00:07]} Bxa2 {[%emt 0:01:58]} 29. Nd7 {[%emt 0:03:09]} Rf1 {[%emt 0:01:11]} 30. Rc8+ {[%emt 0:03:28]} Kh7 {[%emt 0:00:18]} 31. Kxd3 {[%emt 0:01:27]} Rf2 {[%emt 0:02:49]} 32. Nf8+ {[%emt 0:01:33]} Kg8 {[%emt 0:00:22]} 33. Ng6+ {[%emt 0:01:09]} Kh7 {[%emt 0:00:10]} 34. Nf4 {[%emt 0:01:06]} g5 {[%emt 0:01:05]} 35. Rc7+ {[%emt 0:00:09]} Kg8 {[%emt 0:00:15]} 36. Nh5 {[%emt 0:00:50]} Rxg2 {[%emt 0:02:54]} 37. b3 {[%emt 0:09:25]} Rf2 {[%emt 0:02:41]} 38. Rxb7 {[%emt 0:02:59]} Bb1+ {[%emt 0:01:11]} 39. Ke3 {[%emt 0:00:07]} Rf7 {[%emt 0:01:16]} 40. Rb6 {[%emt 0:01:49]} Bc2 {[%emt 0:02:06]} 41. Nf6+ {[%emt 0:30:56]} Kf8 {[%emt 0:05:17]} 42. Ba3+ {[%emt 0:00:00]} Kg7 {[%emt 0:04:18]} 43. Bb2 {[%emt 0:00:00]} Kf8 {[%emt 0:06:07]} 44. Rb8+ {[%emt 0:00:00]} Ke7 {[%emt 0:00:17]} 45. Re8+ {[%emt 0:00:00]} Kd6 {[%emt 0:00:16]} 46. Be5+ {[%emt 0:00:00]} Kc5 {[%emt 0:01:12]} 47. Rc8+ {[%emt 0:00:00]} Kb4 {[%emt 0:00:05]} 48. Rxc2 {[%emt 0:00:00]} Kxb3 {[%emt 0:00:07]} 49. Rc3+ {[%emt 0:00:00]} Kb4 {[%emt 0:00:41]} 50. Nd5+ {[%emt 0:00:00]} 1-0

[Event "FIDE World Junior U20-ch Girls 2025"]
[Site "Petrovac"]
[Date "2025.02.25"]
[Round "1.14"]
[White "Li, Anna Sofie"]
[Black "Allahverdiyeva, Ayan"]
[Result "0-1"]
[Annotator "ChessBase"]
[ECO "B90"]
[WhiteElo "2016"]
[BlackElo "2284"]
[PlyCount "74"]
[EventDate "2025.02.23"]
[EventType "swiss"]
[EventCountry "MNE"]
[SourceTitle "playchess.com"]
[Source "ChessBase"]
[SourceQuality "1"]
[TimeControl "40/5400+30:1800+30"]

1. e4 {[%emt 0:00:03]} c5 {[%emt 0:01:55]} 2. Nf3 {[%emt 0:00:09]} d6 {[%emt 0:00:03]} 3. d4 {[%emt 0:00:08]} cxd4 {[%emt 0:00:03]} 4. Nxd4 {[%emt 0:00:09]} Nf6 {[%emt 0:00:03]} 5. Nc3 {[%emt 0:00:10]} a6 {[%emt 0:00:03]} 6. f3 {[%emt 0:00:22]} e5 {[%emt 0:00:05]} 7. Nb3 {[%emt 0:00:06]} Be7 {[%emt 0:00:28]} 8. Be3 {[%emt 0:00:09]} Be6 {[%emt 0:00:06]} 9. Qd2 {[%emt 0:00:08]} h5 {[%emt 0:01:28]} 10. Be2 {[%emt 0:02:54]} Nbd7 {[%emt 0:01:20]} 11. Nd5 {[%emt 0:02:57]} Bxd5 {[%emt 0:00:39]} 12. exd5 {[%emt 0:00:09]} Qc7 {[%emt 0:00:27]} 13. c4 {[%emt 0:06:38]} a5 {[%emt 0:04:07]} 14. Rc1 {[%emt 0:05:09]} Kf8 {[%emt 0:14:37]} 15. O-O {[%emt 0:05:01]} Kg8 {[%emt 0:01:42]} 16. f4 {[%emt 0:05:45]} a4 {[%emt 0:09:24]} 17. fxe5 {[%emt 0:04:59]} Nxe5 {[%emt 0:06:39]} 18. Nd4 {[%emt 0:01:02]} Nfg4 {[%emt 0:04:27]} 19. Nb5 {[%emt 0:10:37]} Qd8 {[%emt 0:00:46]} 20. Bxg4 {[%emt 0:14:23]} Nxg4 {[%emt 0:18:57]} 21. Bf4 {[%emt 0:02:46]} Qd7 {[%emt 0:05:05]} 22. Rc3 {[%emt 0:07:07]} h4 {[%emt 0:04:14]} 23. h3 {[%emt 0:04:50]} Nf6 {[%emt 0:07:33]} 24. Ra3 {[%emt 0:04:02]} Nh5 {[%emt 0:08:34]} 25. Bh2 {[%emt 0:03:12]} Rh6 {[%emt 0:00:32]} 26. Qd1 {[%emt 0:06:20]} Re8 {[%emt 0:05:00]} 27. Nd4 {[%emt 0:05:53]} Bd8 {[%emt 0:01:47]} 28. Qxa4 {[%emt 0:03:10]} Qxa4 {[%emt 0:00:29]} 29. Rxa4 {[%emt 0:00:07]} Bb6 {[%emt 0:00:02]} 30. c5 {[%emt 0:01:06]} Bxc5 {[%emt 0:00:02]} 31. Kh1 {[%emt 0:00:30]} Rf6 {[%emt 0:01:17]} 32. Nf3 {[%emt 0:02:12]} Ng3+ {[%emt 0:00:47]} 33. Bxg3 {[%emt 0:00:08]} hxg3 {[%emt 0:00:03]} 34. Rc4 {[%emt 0:01:37]} Re2 {[%emt 0:00:31]} 35. Rcc1 {[%emt 0:02:21]} Rxb2 {[%emt 0:01:15]} 36. a4 {[%emt 0:01:00]} Ra2 {[%emt 0:01:04]} 37. Ra1 {[%emt 0:01:09]} Rxf3 {[%emt 0:00:08]} 0-1

[Event "FIDE World Junior U20-ch Girls 2025"]
[Site "Petrovac"]
[Date "2025.02.25"]
[Round "1.15"]
[White "Mungunzul, Bat-Erdene"]
[Black "Zeliantsova, Kseniya"]
[Result "1-0"]
[Annotator "ChessBase"]
[ECO "A42"]
[WhiteElo "2268"]
[BlackElo "1999"]
[PlyCount "73"]
[EventDate "2025.02.23"]
[EventType "swiss"]
[EventCountry "MNE"]
[SourceTitle "playchess.com"]
[Source "ChessBase"]
[SourceQuality "1"]
[TimeControl "40/5400+30:1800+30"]

1. d4 {[%emt 0:00:04]} g6 {[%emt 0:00:07]} 2. c4 {[%emt 0:00:13]} Bg7 {[%emt 0:00:04]} 3. Nc3 {[%emt 0:00:19]} d6 {[%emt 0:00:05]} 4. e4 {[%emt 0:00:10]} e5 {[%emt 0:00:07]} 5. Nf3 {[%emt 0:01:52]} exd4 {[%emt 0:00:09]} 6. Nxd4 {[%emt 0:01:00]} Nc6 {[%emt 0:00:09]} 7. Be3 {[%emt 0:01:48]} Nge7 {[%emt 0:00:15]} 8. Be2 {[%emt 0:04:28]} O-O {[%emt 0:02:38]} 9. Qd2 {[%emt 0:25:04]} f5 {[%emt 0:01:46]} 10. exf5 {[%emt 0:03:11]} Bxd4 {[%emt 0:01:33]} 11. Bxd4 {[%emt 0:01:02]} Nxf5 {[%emt 0:00:10]} 12. Be3 {[%emt 0:00:24]} Nxe3 {[%emt 0:00:10]} 13. Qxe3 {[%emt 0:00:08]} Qf6 {[%emt 0:01:12]} 14. O-O {[%emt 0:05:03]} Be6 {[%emt 0:03:46]} 15. Rad1 {[%emt 0:08:39]} Rae8 {[%emt 0:04:49]} 16. Qd2 {[%emt 0:00:31]} Qf4 {[%emt 0:10:45]} 17. b3 {[%emt 0:01:31]} Qxd2 {[%emt 0:02:34]} 18. Rxd2 {[%emt 0:00:05]} a5 {[%emt 0:04:33]} 19. Bf3 {[%emt 0:05:30]} Kg7 {[%emt 0:04:18]} 20. Nb5 {[%emt 0:03:13]} Re7 {[%emt 0:08:30]} 21. Re2 {[%emt 0:04:56]} Rfe8 {[%emt 0:02:00]} 22. Rxe6 {[%emt 0:05:26]} Rxe6 {[%emt 0:01:51]} 23. Nxc7 {[%emt 0:00:14]} Nb4 {[%emt 0:10:20]} 24. Bxb7 {[%emt 0:10:15]} Nxa2 {[%emt 0:01:28]} 25. g3 {[%emt 0:00:08]} Nc3 {[%emt 0:04:03]} 26. Nxe6+ {[%emt 0:01:29]} Rxe6 {[%emt 0:00:04]} 27. Ra1 {[%emt 0:00:10]} Ne2+ {[%emt 0:04:31]} 28. Kg2 {[%emt 0:02:38]} Nd4 {[%emt 0:02:02]} 29. Bd5 {[%emt 0:01:24]} Re7 {[%emt 0:00:57]} 30. Rxa5 {[%emt 0:02:14]} Nxb3 {[%emt 0:00:36]} 31. Rb5 {[%emt 0:00:23]} Nc5 {[%emt 0:01:23]} 32. Rb6 {[%emt 0:00:19]} Rd7 {[%emt 0:00:32]} 33. f4 {[%emt 0:00:34]} h5 {[%emt 0:04:22]} 34. Kh3 {[%emt 0:03:46]} Kf6 {[%emt 0:03:08]} 35. Rb8 {[%emt 0:00:54]} Ra7 {[%emt 0:05:25]} 36. Rf8+ {[%emt 0:01:55]} Ke7 {[%emt 0:01:08]} 37. Rf7+ {[%emt 0:00:08]} 1-0